[Event "Live Chess"]
[Site "Chess.com"]
[Date "2023.05.21"]
[Round "-"]
[White "LiamBellwood"]
[Black "xx_blindpuffin_xx"]
[Result "0-1"]
[WhiteElo "2027"]
[BlackElo "2183"]
[TimeControl "300"]
[EndTime "19:29:11 PDT"]
[Termination "xx_blindpuffin_xx won on time"]

1. d4 {[%clk 0:04:59.2]} 1... e6 {[%clk 0:04:57.5]} 2. Nc3 {[%clk 0:04:58.8]}
2... d5 {[%clk 0:04:43.1]} 3. Bf4 {[%clk 0:04:57.6]} 3... Bd6 {[%clk 0:04:40.2]}
4. Bxd6 {[%clk 0:04:52.9]} 4... Qxd6 {[%clk 0:04:38.3]} 5. e4 {[%clk 0:04:52.8]}
5... dxe4 {[%clk 0:04:36.4]} 6. Nxe4 {[%clk 0:04:52.7]} 6... Qd8 {[%clk
0:04:32.6]} 7. Nf3 {[%clk 0:04:51.2]} 7... Nf6 {[%clk 0:04:31.6]} 8. Bd3 {[%clk
0:04:50.9]} 8... Nbd7 {[%clk 0:04:29.4]} 9. c3 {[%clk 0:04:47.5]} 9... O-O
{[%clk 0:04:22]} 10. Neg5 {[%clk 0:04:29.6]} 10... b6 {[%clk 0:04:14.2]} 11. O-O
{[%clk 0:04:23.1]} 11... Bb7 {[%clk 0:04:05.5]} 12. Qe2 {[%clk 0:04:11.7]} 12...
h6 {[%clk 0:03:57.4]} 13. Ne4 {[%clk 0:04:10.9]} 13... Nxe4 {[%clk 0:03:56.6]}
14. Bxe4 {[%clk 0:04:10.8]} 14... Bxe4 {[%clk 0:03:55.5]} 15. Qxe4 {[%clk
0:04:10.7]} 15... Nf6 {[%clk 0:03:55]} 16. Qc2 {[%clk 0:04:05]} 16... c5 {[%clk
0:03:52.3]} 17. Rad1 {[%clk 0:04:03]} 17... Qc7 {[%clk 0:03:50.7]} 18. Rfe1
{[%clk 0:03:58.8]} 18... Rfd8 {[%clk 0:03:49.4]} 19. Qe2 {[%clk 0:03:44.8]}
19... Rd6 {[%clk 0:03:40.8]} 20. dxc5 {[%clk 0:03:40]} 20... Qxc5 {[%clk
0:03:37.2]} 21. Rxd6 {[%clk 0:03:39]} 21... Qxd6 {[%clk 0:03:35.3]} 22. Rd1
{[%clk 0:03:38.9]} 22... Qc7 {[%clk 0:03:31.9]} 23. Qd3 {[%clk 0:03:21.5]} 23...
Rc8 {[%clk 0:03:29.6]} 24. Nd4 {[%clk 0:03:18]} 24... Rd8 {[%clk 0:03:19.4]} 25.
Qe2 {[%clk 0:03:00.6]} 25... e5 {[%clk 0:03:01]} 26. Nf3 {[%clk 0:02:58.8]}
26... Rxd1+ {[%clk 0:03:00.9]} 27. Qxd1 {[%clk 0:02:57.7]} 27... e4 {[%clk
0:02:59.2]} 28. Nd4 {[%clk 0:02:52.4]} 28... Qf4 {[%clk 0:02:52.4]} 29. g3
{[%clk 0:02:35.8]} 29... Qe5 {[%clk 0:02:50.8]} 30. Qe2 {[%clk 0:02:29.3]} 30...
Qd5 {[%clk 0:02:41.5]} 31. Nc2 {[%clk 0:02:21.3]} 31... Qd3 {[%clk 0:02:34.1]}
32. Kf1 {[%clk 0:02:12.2]} 32... Qd5 {[%clk 0:02:24.2]} 33. Nb4 {[%clk
0:02:08.5]} 33... Qe6 {[%clk 0:02:22.1]} 34. a3 {[%clk 0:01:58.2]} 34... a5
{[%clk 0:02:17.6]} 35. Nc2 {[%clk 0:01:57.2]} 35... Ng4 {[%clk 0:02:15.7]} 36.
Kg2 {[%clk 0:01:46.2]} 36... f5 {[%clk 0:02:05.9]} 37. Nd4 {[%clk 0:01:43.8]}
37... Qd5 {[%clk 0:01:59.8]} 38. Qb5 {[%clk 0:01:25.3]} 38... Qxb5 {[%clk
0:01:51]} 39. Nxb5 {[%clk 0:01:25.2]} 39... Ne5 {[%clk 0:01:48.5]} 40. Nd6
{[%clk 0:01:15.6]} 40... g6 {[%clk 0:01:45.3]} 41. a4 {[%clk 0:01:04.3]} 41...
Kf8 {[%clk 0:01:40.2]} 42. h4 {[%clk 0:00:56]} 42... Nd3 {[%clk 0:01:29.8]} 43.
b4 {[%clk 0:00:50.8]} 43... axb4 {[%clk 0:01:28]} 44. cxb4 {[%clk 0:00:46.6]}
44... Nxb4 {[%clk 0:01:27.9]} 45. Nc4 {[%clk 0:00:38.8]} 45... Nd5 {[%clk
0:01:15.6]} 46. f3 {[%clk 0:00:37.8]} 46... exf3+ {[%clk 0:01:13.2]} 47. Kxf3
{[%clk 0:00:37.7]} 47... Ke7 {[%clk 0:01:10.6]} 48. g4 {[%clk 0:00:36.2]} 48...
Ke6 {[%clk 0:01:00.9]} 49. h5 {[%clk 0:00:32.9]} 49... gxh5 {[%clk 0:00:57.5]}
50. gxh5 {[%clk 0:00:32.8]} 50... Kf6 {[%clk 0:00:54.9]} 51. a5 {[%clk
0:00:31.3]} 51... bxa5 {[%clk 0:00:51.9]} 52. Nxa5 {[%clk 0:00:30.1]} 52... Kg5
{[%clk 0:00:51.8]} 53. Nc4 {[%clk 0:00:26.7]} 53... Kxh5 {[%clk 0:00:50.7]} 54.
Nd6 {[%clk 0:00:24.6]} 54... Kg5 {[%clk 0:00:49.5]} 55. Nf7+ {[%clk 0:00:23.1]}
55... Kg6 {[%clk 0:00:47.9]} 56. Ne5+ {[%clk 0:00:22.8]} 56... Kf6 {[%clk
0:00:46.6]} 57. Nd7+ {[%clk 0:00:22.2]} 57... Kg7 {[%clk 0:00:44.8]} 58. Ne5
{[%clk 0:00:19.6]} 58... h5 {[%clk 0:00:38.4]} 59. Nc6 {[%clk 0:00:18.4]} 59...
Kf6 {[%clk 0:00:36.6]} 60. Nd4 {[%clk 0:00:16.3]} 60... Kg5 {[%clk 0:00:35.3]}
61. Ne6+ {[%clk 0:00:15.1]} 61... Kh4 {[%clk 0:00:34.3]} 62. Ng7 {[%clk
0:00:13.3]} 62... Kg5 {[%clk 0:00:32.4]} 63. Ne6+ {[%clk 0:00:12.3]} 63... Kf6
{[%clk 0:00:31.6]} 64. Nd4 {[%clk 0:00:12]} 64... h4 {[%clk 0:00:31.1]} 65. Ne2
{[%clk 0:00:09.1]} 65... Kg5 {[%clk 0:00:30.3]} 66. Ng1 {[%clk 0:00:07.3]} 66...
Nf4 {[%clk 0:00:28.7]} 67. Kf2 {[%clk 0:00:03.8]} 67... Kg4 {[%clk 0:00:27.1]}
68. Nf3 {[%clk 0:00:03.1]} 68... Nd3+ {[%clk 0:00:22.7]} 69. Ke3 {[%clk
0:00:01.9]} 69... Nc5 {[%clk 0:00:20.9]} 70. Ng1 {[%clk 0:00:00.6]} 70... Ne6
{[%clk 0:00:19.4]} 71. Ne2 {[%clk 0:00:00.5]} 71... h3 {[%clk 0:00:18.7]} 72.
Kd3 {[%clk 0:00:00.4]} 72... h2 {[%clk 0:00:18]} 73. Kc4 {[%clk 0:00:00.1]}
73... h1=Q {[%clk 0:00:17.2]} 0-1

[Event "Live Chess"]
[Site "Chess.com"]
[Date "2023.05.21"]
[Round "-"]
[White "alanmike75"]
[Black "Duke_of_Bebington"]
[Result "1-0"]
[WhiteElo "1599"]
[BlackElo "1586"]
[TimeControl "300"]
[EndTime "19:29:18 PDT"]
[Termination "alanmike75 won by checkmate"]

1. e4 {[%clk 0:04:58]} 1... e5 {[%clk 0:04:58.9]} 2. Nf3 {[%clk 0:04:56.8]} 2...
Nf6 {[%clk 0:04:57.5]} 3. d3 {[%clk 0:04:54.7]} 3... Nc6 {[%clk 0:04:52.5]} 4.
Be2 {[%clk 0:04:52.5]} 4... Be7 {[%clk 0:04:49.2]} 5. c4 {[%clk 0:04:51.1]} 5...
O-O {[%clk 0:04:48]} 6. O-O {[%clk 0:04:50]} 6... d6 {[%clk 0:04:46.5]} 7. Nc3
{[%clk 0:04:48.8]} 7... a6 {[%clk 0:04:42.5]} 8. h3 {[%clk 0:04:42.2]} 8... Re8
{[%clk 0:04:35.2]} 9. Be3 {[%clk 0:04:40.4]} 9... Bf8 {[%clk 0:04:32.7]} 10. a3
{[%clk 0:04:36]} 10... b5 {[%clk 0:04:31.3]} 11. cxb5 {[%clk 0:04:32.9]} 11...
axb5 {[%clk 0:04:31.2]} 12. Nxb5 {[%clk 0:04:31.2]} 12... Ba6 {[%clk 0:04:30.8]}
13. Nc3 {[%clk 0:04:23.6]} 13... Rb8 {[%clk 0:04:28]} 14. b4 {[%clk 0:04:22.1]}
14... Na7 {[%clk 0:04:22.3]} 15. Rc1 {[%clk 0:04:13.5]} 15... Nb5 {[%clk
0:04:20.4]} 16. Nxb5 {[%clk 0:04:11.8]} 16... Bxb5 {[%clk 0:04:19.6]} 17. Qc2
{[%clk 0:04:08]} 17... Rc8 {[%clk 0:04:11.2]} 18. Rfe1 {[%clk 0:04:06]} 18...
Nd7 {[%clk 0:04:05.7]} 19. a4 {[%clk 0:04:02.7]} 19... Ba6 {[%clk 0:04:01.6]}
20. b5 {[%clk 0:04:01.5]} 20... Bb7 {[%clk 0:04:01.1]} 21. Qb3 {[%clk
0:03:56.9]} 21... Nb8 {[%clk 0:03:47.7]} 22. Rc2 {[%clk 0:03:54.2]} 22... c5
{[%clk 0:03:44.9]} 23. bxc6 {[%clk 0:03:51.9]} 23... Bxc6 {[%clk 0:03:40.3]} 24.
Rec1 {[%clk 0:03:49]} 24... Qd7 {[%clk 0:03:27.8]} 25. a5 {[%clk 0:03:41.3]}
25... Ba4 {[%clk 0:03:26.1]} 26. Qb2 {[%clk 0:03:32.8]} 26... Rxc2 {[%clk
0:03:22.6]} 27. Rxc2 {[%clk 0:03:31.7]} 27... Bxc2 {[%clk 0:03:21.5]} 28. Qxc2
{[%clk 0:03:30.6]} 28... Nc6 {[%clk 0:03:15.5]} 29. Bb6 {[%clk 0:03:23.3]} 29...
Ra8 {[%clk 0:03:11]} 30. Qc3 {[%clk 0:03:17]} 30... Be7 {[%clk 0:03:07.1]} 31.
Nd2 {[%clk 0:03:15.3]} 31... Bd8 {[%clk 0:03:06]} 32. Nc4 {[%clk 0:03:13.8]}
32... Bxb6 {[%clk 0:03:01.4]} 33. Nxb6 {[%clk 0:03:11.3]} 33... Qb7 {[%clk
0:02:55.4]} 34. Nxa8 {[%clk 0:03:09.7]} 34... Qxa8 {[%clk 0:02:55.3]} 35. Qa3
{[%clk 0:02:58.9]} 35... Qxa5 {[%clk 0:02:47.6]} 36. Qxd6 {[%clk 0:02:57.2]}
36... h6 {[%clk 0:02:33.7]} 37. Qxc6 {[%clk 0:02:53.2]} 37... Qe1+ {[%clk
0:02:31.4]} 38. Kh2 {[%clk 0:02:51.9]} 38... Qxe2 {[%clk 0:02:30.9]} 39. Qe8+
{[%clk 0:02:47.1]} 39... Kh7 {[%clk 0:02:28.7]} 40. Qxf7 {[%clk 0:02:42.8]}
40... Qxd3 {[%clk 0:02:26.7]} 41. Qf5+ {[%clk 0:02:39.7]} 41... Kg8 {[%clk
0:02:25]} 42. Qxe5 {[%clk 0:02:38.2]} 42... Qf1 {[%clk 0:02:20.1]} 43. Qf5
{[%clk 0:02:29.5]} 43... Qc4 {[%clk 0:02:18]} 44. e5 {[%clk 0:02:26]} 44... Qf7
{[%clk 0:02:17.9]} 45. Qxf7+ {[%clk 0:02:24.3]} 45... Kxf7 {[%clk 0:02:17.8]}
46. f4 {[%clk 0:02:22.5]} 46... Ke6 {[%clk 0:02:17.7]} 47. g4 {[%clk 0:02:20.9]}
47... g5 {[%clk 0:02:16.1]} 48. Kg3 {[%clk 0:02:17.7]} 48... Kf7 {[%clk
0:02:11]} 49. f5 {[%clk 0:02:15.5]} 49... Kg7 {[%clk 0:02:08.1]} 50. h4 {[%clk
0:02:14.5]} 50... Kf7 {[%clk 0:02:04.9]} 51. hxg5 {[%clk 0:02:13.4]} 51... hxg5
{[%clk 0:02:04.8]} 52. Kf3 {[%clk 0:02:12.3]} 52... Kg7 {[%clk 0:02:03.9]} 53.
Ke4 {[%clk 0:02:11.3]} 53... Kf7 {[%clk 0:02:03.8]} 54. Kd5 {[%clk 0:02:10.3]}
54... Ke7 {[%clk 0:02:03.7]} 55. Kc6 {[%clk 0:02:08.6]} 55... Kf7 {[%clk
0:02:02.3]} 56. Kd7 {[%clk 0:02:07.3]} 56... Kf8 {[%clk 0:02:00.8]} 57. e6
{[%clk 0:02:06.3]} 57... Kg7 {[%clk 0:01:58.5]} 58. e7 {[%clk 0:02:04.7]} 58...
Kf6 {[%clk 0:01:58.1]} 59. e8=Q {[%clk 0:02:00.4]} 59... Kg7 {[%clk 0:01:54.9]}
60. Qg6+ {[%clk 0:01:58.7]} 60... Kh8 {[%clk 0:01:53.6]} 61. Qxg5 {[%clk
0:01:56.1]} 61... Kh7 {[%clk 0:01:52.4]} 62. f6 {[%clk 0:01:53.7]} 62... Kh8
{[%clk 0:01:51.5]} 63. f7 {[%clk 0:01:52.7]} 63... Kh7 {[%clk 0:01:50.9]} 64.
Ke7 {[%clk 0:01:51.3]} 64... Kh8 {[%clk 0:01:49.8]} 65. f8=Q+ {[%clk 0:01:49.3]}
65... Kh7 {[%clk 0:01:47.8]} 66. Qf7+ {[%clk 0:01:47.2]} 66... Kh8 {[%clk
0:01:44.8]} 67. Qh6# {[%clk 0:01:46.1]} 1-0

[Event "Live Chess"]
[Site "Chess.com"]
[Date "2023.05.21"]
[Round "-"]
[White "therealab0ne"]
[Black "chessfiction"]
[Result "0-1"]
[WhiteElo "722"]
[BlackElo "2355"]
[TimeControl "300"]
[EndTime "19:29:38 PDT"]
[Termination "chessfiction won by resignation"]

1. e4 {[%clk 0:04:58.4]} 1... d5 {[%clk 0:04:58.7]} 2. exd5 {[%clk 0:04:57.5]}
2... c6 {[%clk 0:04:57.8]} 3. dxc6 {[%clk 0:04:44]} 3... e5 {[%clk 0:04:53.9]}
4. Nc3 {[%clk 0:04:36.6]} 4... Bc5 {[%clk 0:04:52.6]} 5. Nf3 {[%clk 0:04:32.8]}
5... Nf6 {[%clk 0:04:50.6]} 6. d4 {[%clk 0:04:25.4]} 6... exd4 {[%clk
0:04:49.3]} 7. Nxd4 {[%clk 0:04:24.2]} 7... Bxd4 {[%clk 0:04:48.1]} 8. Bb5
{[%clk 0:04:21.1]} 8... O-O {[%clk 0:04:46.3]} 9. Be3 {[%clk 0:04:10]} 9...
Bxc3+ {[%clk 0:04:42.7]} 10. Bd2 {[%clk 0:04:04.6]} 10... Qa5 {[%clk 0:04:42.6]}
11. Bxc3 {[%clk 0:03:41.9]} 11... Qxb5 {[%clk 0:04:40.6]} 12. Qf3 {[%clk
0:03:35.2]} 12... Re8+ {[%clk 0:04:38.5]} 13. Kd2 {[%clk 0:03:27.4]} 13... Ne4+
{[%clk 0:04:37.1]} 0-1

[Event "Live Chess"]
[Site "Chess.com"]
[Date "2023.05.21"]
[Round "-"]
[White "garyjc"]
[Black "CheckThis4"]
[Result "0-1"]
[WhiteElo "1046"]
[BlackElo "2512"]
[TimeControl "300"]
[EndTime "19:30:35 PDT"]
[Termination "CheckThis4 won by resignation"]

1. e4 {[%clk 0:04:55.6]} 1... d5 {[%clk 0:04:58]} 2. exd5 {[%clk 0:04:54.2]}
2... Nf6 {[%clk 0:04:57.6]} 3. Nc3 {[%clk 0:04:49.9]} 3... c6 {[%clk 0:04:55.6]}
4. dxc6 {[%clk 0:04:40.5]} 4... Nxc6 {[%clk 0:04:55.5]} 5. Nf3 {[%clk
0:04:31.6]} 5... e5 {[%clk 0:04:53.9]} 6. d3 {[%clk 0:04:26.8]} 6... Bc5 {[%clk
0:04:52.2]} 7. Be2 {[%clk 0:04:03.9]} 7... h6 {[%clk 0:04:49.2]} 8. O-O {[%clk
0:04:01.7]} 8... O-O {[%clk 0:04:47.6]} 9. Na4 {[%clk 0:03:53.4]} 9... Bd6
{[%clk 0:04:44]} 10. Bd2 {[%clk 0:03:32.1]} 10... Re8 {[%clk 0:04:40.6]} 11. a3
{[%clk 0:03:23.5]} 11... Bc7 {[%clk 0:04:36.7]} 12. b4 {[%clk 0:03:19.5]} 12...
e4 {[%clk 0:04:30.5]} 13. Nc5 {[%clk 0:03:09.6]} 13... exf3 {[%clk 0:04:19.8]}
14. Bxf3 {[%clk 0:03:06.2]} 14... Nd4 {[%clk 0:04:12.9]} 15. c3 {[%clk 0:02:47]}
15... Nxf3+ {[%clk 0:04:09.1]} 16. Qxf3 {[%clk 0:02:45.7]} 16... Rb8 {[%clk
0:03:54.2]} 17. Rae1 {[%clk 0:02:09.4]} 17... b6 {[%clk 0:03:49.1]} 18. Ne4
{[%clk 0:02:04.5]} 18... Nxe4 {[%clk 0:03:43.1]} 19. dxe4 {[%clk 0:01:58]} 19...
Qxd2 {[%clk 0:03:39.3]} 20. Rd1 {[%clk 0:01:41.4]} 20... Qf4 {[%clk 0:03:34.3]}
21. Qxf4 {[%clk 0:01:34.8]} 21... Bxf4 {[%clk 0:03:34.2]} 22. Rfe1 {[%clk
0:01:20.1]} 22... Be5 {[%clk 0:03:27.7]} 23. c4 {[%clk 0:01:10.9]} 23... Be6
{[%clk 0:03:25.2]} 24. c5 {[%clk 0:01:02]} 24... bxc5 {[%clk 0:03:23.8]} 25.
bxc5 {[%clk 0:01:01.4]} 25... Rec8 {[%clk 0:03:22.6]} 26. Rf1 {[%clk 0:00:54.9]}
26... Bc4 {[%clk 0:03:16]} 27. Rfe1 {[%clk 0:00:49]} 27... Rxc5 {[%clk
0:03:14.1]} 0-1

[Event "Live Chess"]
[Site "Chess.com"]
[Date "2023.05.21"]
[Round "-"]
[White "romchyk1219"]
[Black "xx_blindpuffin_xx"]
[Result "0-1"]
[WhiteElo "639"]
[BlackElo "2183"]
[TimeControl "300"]
[EndTime "19:30:55 PDT"]
[Termination "xx_blindpuffin_xx won by resignation"]

1. e4 {[%clk 0:04:58.8]} 1... c6 {[%clk 0:04:54.9]} 2. d4 {[%clk 0:04:56.5]}
2... d5 {[%clk 0:04:54.8]} 3. Nc3 {[%clk 0:04:55.3]} 3... dxe4 {[%clk
0:04:51.2]} 4. Nxe4 {[%clk 0:04:55.2]} 4... Bf5 {[%clk 0:04:39.4]} 5. Qe2 {[%clk
0:04:51]} 5... e6 {[%clk 0:04:27.8]} 6. Ng3 {[%clk 0:04:46]} 6... Bg6 {[%clk
0:04:26]} 7. Ne4 {[%clk 0:04:36.8]} 7... Nf6 {[%clk 0:04:21.1]} 8. Nxf6+ {[%clk
0:04:34.5]} 8... Qxf6 {[%clk 0:04:17.5]} 9. g3 {[%clk 0:04:34]} 9... Qxd4 {[%clk
0:04:09.4]} 10. Qd2 {[%clk 0:04:32.7]} 10... Qe4+ {[%clk 0:04:05.8]} 11. Qe2
{[%clk 0:04:31.2]} 11... Qxh1 {[%clk 0:04:04]} 0-1

[Event "Live Chess"]
[Site "Chess.com"]
[Date "2023.05.21"]
[Round "-"]
[White "Tushinskiy"]
[Black "IgorSchukin"]
[Result "1-0"]
[WhiteElo "2189"]
[BlackElo "1782"]
[TimeControl "300"]
[EndTime "19:31:49 PDT"]
[Termination "Tushinskiy won on time"]

1. d4 {[%clk 0:04:58.2]} 1... d5 {[%clk 0:04:58.7]} 2. c3 {[%clk 0:04:58.1]}
2... Nf6 {[%clk 0:04:57.4]} 3. Nf3 {[%clk 0:04:57.9]} 3... Bg4 {[%clk
0:04:53.8]} 4. Bf4 {[%clk 0:04:56.7]} 4... Bxf3 {[%clk 0:04:51.1]} 5. gxf3
{[%clk 0:04:56.6]} 5... e6 {[%clk 0:04:49.1]} 6. Nd2 {[%clk 0:04:55.6]} 6... Bd6
{[%clk 0:04:48.2]} 7. Bg3 {[%clk 0:04:55]} 7... Bxg3 {[%clk 0:04:46]} 8. hxg3
{[%clk 0:04:54.9]} 8... Nbd7 {[%clk 0:04:42.1]} 9. e4 {[%clk 0:04:54.2]} 9... h6
{[%clk 0:04:32.1]} 10. Bd3 {[%clk 0:04:52.3]} 10... c5 {[%clk 0:04:29.9]} 11. e5
{[%clk 0:04:51.1]} 11... Ng8 {[%clk 0:04:21.9]} 12. f4 {[%clk 0:04:50.1]} 12...
c4 {[%clk 0:04:20.1]} 13. Bc2 {[%clk 0:04:48.8]} 13... b5 {[%clk 0:04:18.8]} 14.
Qg4 {[%clk 0:04:47.6]} 14... g6 {[%clk 0:04:15.7]} 15. Bxg6 {[%clk 0:04:39.9]}
15... fxg6 {[%clk 0:04:14]} 16. Qxg6+ {[%clk 0:04:39.2]} 16... Kf8 {[%clk
0:04:10.9]} 17. Qxe6 {[%clk 0:04:37]} 17... Ne7 {[%clk 0:03:51.1]} 18. Rxh6
{[%clk 0:04:34.2]} 18... Rxh6 {[%clk 0:03:48.6]} 19. Qxh6+ {[%clk 0:04:34.1]}
19... Kf7 {[%clk 0:03:45.7]} 20. e6+ {[%clk 0:04:31.4]} 20... Kg8 {[%clk
0:03:38.6]} 21. exd7 {[%clk 0:04:31.3]} 21... Qxd7 {[%clk 0:03:37.2]} 22. O-O-O
{[%clk 0:04:30.3]} 22... Qf5 {[%clk 0:03:16.2]} 23. Rh1 {[%clk 0:04:25.9]} 23...
Ng6 {[%clk 0:03:14.1]} 24. Nf3 {[%clk 0:04:23.2]} 24... Re8 {[%clk 0:03:10.1]}
25. Ng5 {[%clk 0:04:15.2]} 25... Re2 {[%clk 0:02:51.3]} 26. Qh7+ {[%clk
0:03:51.1]} 26... Kf8 {[%clk 0:02:42.2]} 27. Qh6+ {[%clk 0:03:43.5]} 27... Ke7
{[%clk 0:02:35.1]} 28. Qg7+ {[%clk 0:03:33.5]} 28... Kd6 {[%clk 0:02:08.7]} 29.
Nf7+ {[%clk 0:03:21.4]} 29... Kc6 {[%clk 0:01:59.3]} 30. Ne5+ {[%clk 0:03:17.9]}
30... Nxe5 {[%clk 0:01:42.2]} 31. Rh6+ {[%clk 0:03:15.6]} 31... Ng6 {[%clk
0:01:38.9]} 32. Rxg6+ {[%clk 0:03:13.9]} 32... Re6 {[%clk 0:01:36.7]} 33. Rxe6+
{[%clk 0:03:07.1]} 33... Qxe6 {[%clk 0:01:35.1]} 34. Qe5 {[%clk 0:03:06.5]}
34... Qh3 {[%clk 0:01:29.3]} 35. Qe1 {[%clk 0:03:03.3]} 35... a5 {[%clk
0:01:21.5]} 36. Kd2 {[%clk 0:03:01.5]} 36... b4 {[%clk 0:01:19]} 37. Qe8+ {[%clk
0:03:00.1]} 37... Kb6 {[%clk 0:01:13.6]} 38. Qb8+ {[%clk 0:02:51.8]} 38... Kc6
{[%clk 0:01:07.1]} 39. cxb4 {[%clk 0:02:50.2]} 39... Qg2 {[%clk 0:00:55.6]} 40.
Qe8+ {[%clk 0:02:48]} 40... Kb6 {[%clk 0:00:51.9]} 41. bxa5+ {[%clk 0:02:34.2]}
41... Kxa5 {[%clk 0:00:50.6]} 42. Qe3 {[%clk 0:02:31.1]} 42... Kb5 {[%clk
0:00:45.5]} 43. f5 {[%clk 0:02:28.9]} 43... Qf1 {[%clk 0:00:37.9]} 44. f6 {[%clk
0:02:25.9]} 44... Qb1 {[%clk 0:00:35.8]} 45. Qe8+ {[%clk 0:02:23.4]} 45... Kb6
{[%clk 0:00:30.7]} 46. Qe6+ {[%clk 0:02:16.1]} 46... Kc7 {[%clk 0:00:29]} 47.
Qe7+ {[%clk 0:02:01.4]} 47... Kc6 {[%clk 0:00:25.6]} 48. Qc5+ {[%clk 0:02:00]}
48... Kb7 {[%clk 0:00:21.4]} 49. Qxd5+ {[%clk 0:01:58.7]} 49... Ka7 {[%clk
0:00:20.2]} 50. Qxc4 {[%clk 0:01:54]} 50... Qxb2+ {[%clk 0:00:18.4]} 51. Ke3
{[%clk 0:01:53.2]} 51... Qb7 {[%clk 0:00:08]} 52. f7 {[%clk 0:01:49.6]} 52...
Qe7+ {[%clk 0:00:06.2]} 53. Kf3 {[%clk 0:01:47.8]} 53... Qf6+ {[%clk 0:00:02.7]}
54. Kg2 {[%clk 0:01:46.7]} 1-0

[Event "Live Chess"]
[Site "Chess.com"]
[Date "2023.05.21"]
[Round "-"]
[White "manthanit"]
[Black "LutherSullivan"]
[Result "0-1"]
[WhiteElo "1064"]
[BlackElo "2134"]
[TimeControl "300"]
[EndTime "19:31:55 PDT"]
[Termination "LutherSullivan won by resignation"]

1. e4 {[%clk 0:04:58.7]} 1... e5 {[%clk 0:04:58.1]} 2. Nf3 {[%clk 0:04:58]} 2...
Nc6 {[%clk 0:04:56.9]} 3. Bc4 {[%clk 0:04:57.6]} 3... Bc5 {[%clk 0:04:54.9]} 4.
d3 {[%clk 0:04:56.6]} 4... Nf6 {[%clk 0:04:53.5]} 5. h3 {[%clk 0:04:55.6]} 5...
O-O {[%clk 0:04:49.3]} 6. O-O {[%clk 0:04:54.3]} 6... d6 {[%clk 0:04:46.7]} 7.
Nc3 {[%clk 0:04:53]} 7... h6 {[%clk 0:04:45.1]} 8. Nd5 {[%clk 0:04:51.8]} 8...
Nxd5 {[%clk 0:04:43.4]} 9. Bxd5 {[%clk 0:04:50.6]} 9... Ne7 {[%clk 0:04:42.2]}
10. Bb3 {[%clk 0:04:48.7]} 10... Ng6 {[%clk 0:04:40.8]} 11. a4 {[%clk
0:04:41.8]} 11... Nh4 {[%clk 0:04:37.4]} 12. Nxh4 {[%clk 0:04:37.1]} 12... Qxh4
{[%clk 0:04:35.2]} 13. Qf3 {[%clk 0:04:34.6]} 13... Kh7 {[%clk 0:04:25.4]} 14.
Be3 {[%clk 0:04:32.6]} 14... Bxe3 {[%clk 0:04:10]} 15. fxe3 {[%clk 0:04:28.6]}
15... f5 {[%clk 0:03:59.3]} 16. c4 {[%clk 0:04:10.8]} 16... f4 {[%clk
0:03:55.2]} 17. exf4 {[%clk 0:04:08]} 17... Rxf4 {[%clk 0:03:53.2]} 18. Qe3
{[%clk 0:03:58.3]} 18... c5 {[%clk 0:03:19.4]} 19. Rad1 {[%clk 0:03:51.6]} 19...
Bd7 {[%clk 0:03:15.8]} 20. Bc2 {[%clk 0:03:49.6]} 20... Raf8 {[%clk 0:03:13.9]}
21. b3 {[%clk 0:03:47.7]} 21... a5 {[%clk 0:03:10.5]} 22. Kh2 {[%clk 0:03:40.6]}
22... Rf2 {[%clk 0:03:04.9]} 23. Rxf2 {[%clk 0:03:36.4]} 23... Rxf2 {[%clk
0:03:02.9]} 24. Qg3 {[%clk 0:03:33.9]} 24... Qxg3+ {[%clk 0:03:00.2]} 25. Kxg3
{[%clk 0:03:32.8]} 25... Rxc2 {[%clk 0:02:59.8]} 26. Rf1 {[%clk 0:03:32.4]}
26... Kg8 {[%clk 0:02:58.1]} 27. Kf3 {[%clk 0:03:26.7]} 27... Rb2 {[%clk
0:02:56.6]} 28. Ke3 {[%clk 0:03:24.1]} 28... Rxb3 {[%clk 0:02:56.1]} 29. g4
{[%clk 0:03:23.6]} 29... Bxa4 {[%clk 0:02:54.2]} 30. h4 {[%clk 0:03:15.1]} 30...
b5 {[%clk 0:02:53]} 31. g5 {[%clk 0:03:14.5]} 31... hxg5 {[%clk 0:02:49.9]} 32.
hxg5 {[%clk 0:03:12.9]} 32... bxc4 {[%clk 0:02:49.3]} 33. g6 {[%clk 0:03:09.7]}
33... Rxd3+ {[%clk 0:02:47.7]} 34. Ke2 {[%clk 0:03:05.5]} 34... Be8 {[%clk
0:02:47.2]} 35. Rg1 {[%clk 0:02:58.1]} 35... a4 {[%clk 0:02:44.6]} 0-1

[Event "Live Chess"]
[Site "Chess.com"]
[Date "2023.05.21"]
[Round "-"]
[White "Fazer180"]
[Black "GEMdzq"]
[Result "0-1"]
[WhiteElo "1743"]
[BlackElo "2293"]
[TimeControl "300"]
[EndTime "19:32:12 PDT"]
[Termination "GEMdzq won by resignation"]

1. e4 {[%clk 0:04:58.7]} 1... d6 {[%clk 0:04:58.2]} 2. d4 {[%clk 0:04:55]} 2...
Nf6 {[%clk 0:04:57.7]} 3. Nc3 {[%clk 0:04:53.4]} 3... g6 {[%clk 0:04:57.3]} 4.
Nf3 {[%clk 0:04:51.6]} 4... Bg7 {[%clk 0:04:56.8]} 5. Bc4 {[%clk 0:04:49.4]}
5... O-O {[%clk 0:04:54.7]} 6. Bf4 {[%clk 0:04:47.4]} 6... c6 {[%clk 0:04:53.9]}
7. O-O {[%clk 0:04:45.8]} 7... b5 {[%clk 0:04:52.5]} 8. Bd3 {[%clk 0:04:42.6]}
8... b4 {[%clk 0:04:51.6]} 9. Ne2 {[%clk 0:04:38.1]} 9... a5 {[%clk 0:04:50.6]}
10. c3 {[%clk 0:04:28]} 10... Nh5 {[%clk 0:04:47.7]} 11. Qa4 {[%clk 0:04:10.2]}
11... Bg4 {[%clk 0:04:39.3]} 12. cxb4 {[%clk 0:03:58.3]} 12... Bxf3 {[%clk
0:04:37.9]} 13. gxf3 {[%clk 0:03:56.4]} 13... Nxf4 {[%clk 0:04:36]} 14. Nxf4
{[%clk 0:03:56.3]} 14... e5 {[%clk 0:04:35.2]} 15. Ne2 {[%clk 0:03:45.9]} 15...
Qf6 {[%clk 0:04:17.7]} 16. Kg2 {[%clk 0:03:13]} 16... exd4 {[%clk 0:04:10.9]}
17. bxa5 {[%clk 0:03:06.6]} 17... Nd7 {[%clk 0:04:10.3]} 18. Qxc6 {[%clk
0:03:00.7]} 18... Ne5 {[%clk 0:04:09.2]} 19. Qc2 {[%clk 0:02:50.5]} 19... Qxf3+
{[%clk 0:04:07.8]} 20. Kg1 {[%clk 0:02:47.6]} 20... Nxd3 {[%clk 0:04:04.9]} 21.
Ng3 {[%clk 0:02:38.5]} 21... Nf4 {[%clk 0:04:01.9]} 0-1